[Event "Titled Tuesday Blitz October 18 Late 2022"]
[White "Rodriguez Santiago, Jaime"]
[Black "Kunin, Vitaly"]
[WhiteFideId "3100898"]
[BlackFideId "4128737"]
[WhiteElo "2025"]
[BlackElo "2417"]
[Result "0-1"]
[Round "03"]
[TimeControl "180+1"]
[Date "2022.10.19"]
[WhiteClock "0:00:06"]
[BlackClock "0:00:21"]

1. c4 {[%clk 0:03:00]}  e5 {[%clk 0:02:59]} 2. Nc3 {[%clk 0:03:00]}  Nc6 {[%clk 0:02:59]} 3. g3 {[%clk 0:03:00]}  f5 {[%clk 0:03:00]} 4. Bg2 {[%clk 0:02:59]}  Nf6 {[%clk 0:03:00]} 5. e3 {[%clk 0:02:59]}  Bb4 {[%clk 0:03:00]} 6. Nge2 {[%clk 0:02:59]}  O-O {[%clk 0:02:59]} 7. O-O {[%clk 0:02:58]}  d6 {[%clk 0:03:00]} 8. d3 {[%clk 0:02:54]}  Bxc3 {[%clk 0:02:57]} 9. Nxc3 {[%clk 0:02:53]}  Be6 {[%clk 0:02:57]} 10. Rb1 {[%clk 0:02:53]}  Kh8 {[%clk 0:02:56]} 11. b4 {[%clk 0:02:53]}  Rb8 {[%clk 0:02:52]} 12. a4 {[%clk 0:02:52]}  Qd7 {[%clk 0:02:50]} 13. f4 {[%clk 0:02:39]}  Rbe8 {[%clk 0:02:41]} 14. h3 {[%clk 0:02:22]}  Bg8 {[%clk 0:02:37]} 15. b5 {[%clk 0:02:12]}  Nd8 {[%clk 0:02:36]} 16. a5 {[%clk 0:02:10]}  e4 {[%clk 0:02:30]} 17. dxe4 {[%clk 0:02:03]}  Bxc4 {[%clk 0:02:29]} 18. Rf2 {[%clk 0:02:02]}  fxe4 {[%clk 0:02:26]} 19. b6 {[%clk 0:02:00]}  axb6 {[%clk 0:02:25]} 20. axb6 {[%clk 0:02:00]}  c6 {[%clk 0:02:24]} 21. g4 {[%clk 0:01:57]}  d5 {[%clk 0:02:20]} 22. g5 {[%clk 0:01:51]}  Ng8 {[%clk 0:02:19]} 23. Nxe4 {[%clk 0:01:49]}  Qf5 {[%clk 0:02:16]} 24. Nc3 {[%clk 0:01:44]}  Ne6 {[%clk 0:02:03]} 25. Bb2 {[%clk 0:01:26]}  Nxg5 {[%clk 0:02:00]} 26. Ne2 {[%clk 0:00:52]}  Nxh3+ {[%clk 0:01:48]} 27. Bxh3 {[%clk 0:00:52]}  Qxh3 {[%clk 0:01:49]} 28. Qd4 {[%clk 0:00:45]}  Nf6 {[%clk 0:01:48]} 29. Rg2 {[%clk 0:00:10]}  Qxe3+ {[%clk 0:01:46]} 30. Qxe3 {[%clk 0:00:11]}  Rxe3 {[%clk 0:01:46]} 31. Ng3 {[%clk 0:00:10]}  Bd3 {[%clk 0:01:22]} 32. Ra1 {[%clk 0:00:07]}  Bg6 {[%clk 0:01:16]} 33. f5 {[%clk 0:00:06]}  Bf7 {[%clk 0:01:15]} 34. Ra7 {[%clk 0:00:03]}  Rb8 {[%clk 0:01:13]} 35. Nf1 {[%clk 0:00:01]}  Rb3 {[%clk 0:01:08]} 36. Be5 {[%clk 0:00:01]}  Re8 {[%clk 0:01:04]} 37. Rxb7 {[%clk 0:00:01]}  Rxe5 {[%clk 0:00:56]} 38. Rxf7 {[%clk 0:00:01]}  Rxb6 {[%clk 0:00:49]} 39. Rf8+ {[%clk 0:00:01]}  Ng8 {[%clk 0:00:49]} 40. f6 {[%clk 0:00:02]}  Rb7 {[%clk 0:00:21]} 41. f7 {[%clk 0:00:01]}  Rxf7 {[%clk 0:00:22]} 42. Rxf7 {[%clk 0:00:02]}  g6 {[%clk 0:00:23]} 43. Rf8 {[%clk 0:00:02]}  Kg7 {[%clk 0:00:23]} 44. Rgf2 {[%clk 0:00:03]}  Nh6 {[%clk 0:00:23]} 45. Re8 {[%clk 0:00:01]}  Rxe8 {[%clk 0:00:22]} 46. Ng3 {[%clk 0:00:02]}  Nf5 {[%clk 0:00:21]} 47. Kg2 {[%clk 0:00:03]}  Nxg3 {[%clk 0:00:21]} 48. Kxg3 {[%clk 0:00:03]}  Rf8 {[%clk 0:00:21]} 49. Rc2 {[%clk 0:00:04]}  Rf6 {[%clk 0:00:21]} 50. Rc5 {[%clk 0:00:04]}  Kf7 {[%clk 0:00:21]} 51. Kg4 {[%clk 0:00:05]}  Ke7 {[%clk 0:00:21]} 52. Kg5 {[%clk 0:00:06]}  Kd6 {[%clk 0:00:22]} 53. Rc3 {[%clk 0:00:06]}  Rf5+ {[%clk 0:00:21]} 0-1


[Site "https://www.chess.com"]

[Event "Titled Tuesday Blitz October 18 Late 2022"]
[White "Rosen, Eric"]
[Black "Carbone, Diego"]
[WhiteFideId "2032562"]
[BlackFideId "3002179"]
[WhiteElo "2362"]
[BlackElo "2243"]
[Result "1-0"]
[Round "03"]
[TimeControl "180+1"]
[Date "2022.10.19"]
[WhiteClock "0:01:30"]
[BlackClock "0:01:02"]

1. d4 {[%clk 0:03:00]}  Nf6 {[%clk 0:02:58]} 2. Bf4 {[%clk 0:03:01]}  d5 {[%clk 0:02:57]} 3. e3 {[%clk 0:03:02]}  e6 {[%clk 0:02:51]} 4. Nf3 {[%clk 0:03:02]}  c5 {[%clk 0:02:51]} 5. Nbd2 {[%clk 0:03:03]}  Nc6 {[%clk 0:02:51]} 6. c3 {[%clk 0:03:03]}  Bd6 {[%clk 0:02:51]} 7. Bg3 {[%clk 0:03:03]}  O-O {[%clk 0:02:51]} 8. Bb5 {[%clk 0:03:04]}  a6 {[%clk 0:02:38]} 9. Bxc6 {[%clk 0:03:04]}  bxc6 {[%clk 0:02:38]} 10. Qa4 {[%clk 0:03:05]}  Bxg3 {[%clk 0:02:27]} 11. hxg3 {[%clk 0:03:05]}  Qb6 {[%clk 0:02:21]} 12. b3 {[%clk 0:02:59]}  cxd4 {[%clk 0:02:16]} 13. cxd4 {[%clk 0:02:56]}  c5 {[%clk 0:02:16]} 14. dxc5 {[%clk 0:02:51]}  Qxc5 {[%clk 0:02:16]} 15. O-O {[%clk 0:02:48]}  Bd7 {[%clk 0:02:16]} 16. Qf4 {[%clk 0:02:40]}  Rac8 {[%clk 0:02:07]} 17. g4 {[%clk 0:02:40]}  h6 {[%clk 0:01:59]} 18. g5 {[%clk 0:02:40]}  hxg5 {[%clk 0:01:59]} 19. Nxg5 {[%clk 0:02:40]}  Bb5 {[%clk 0:01:59]} 20. Rfe1 {[%clk 0:02:37]}  Bd3 {[%clk 0:01:58]} 21. Ndf3 {[%clk 0:02:36]}  Qc7 {[%clk 0:01:40]} 22. Qh4 {[%clk 0:02:32]}  Bg6 {[%clk 0:01:34]} 23. Rad1 {[%clk 0:02:18]}  Rfd8 {[%clk 0:01:32]} 24. Rd4 {[%clk 0:02:16]}  Qe7 {[%clk 0:01:31]} 25. Ne5 {[%clk 0:02:07]}  Ne4 {[%clk 0:01:17]} 26. Rxe4 {[%clk 0:01:31]}  Bxe4 {[%clk 0:01:10]} 27. Nexf7 {[%clk 0:01:31]}  Rf8 {[%clk 0:01:02]} 28. Qh8# {[%clk 0:01:30]} 1-0


[Site "https://www.chess.com"]

[Event "Titled Tuesday Blitz October 18 Late 2022"]
[White "Shimanov, Aleksandr"]
[Black "Harvey, Marcus R"]
[WhiteFideId "4198603"]
[BlackFideId "400092"]
[WhiteElo "2605"]
[BlackElo "2457"]
[Result "1-0"]
[Round "03"]
[TimeControl "180+1"]
[Date "2022.10.18"]
[WhiteClock "0:00:22"]
[BlackClock "0:00:07"]

1. b3 {[%clk 0:03:00]}  d5 {[%clk 0:02:59]} 2. Bb2 {[%clk 0:03:01]}  Bf5 {[%clk 0:02:59]} 3. d3 {[%clk 0:03:01]}  Nf6 {[%clk 0:02:59]} 4. Nd2 {[%clk 0:03:00]}  e6 {[%clk 0:02:59]} 5. g3 {[%clk 0:03:00]}  a5 {[%clk 0:02:58]} 6. a3 {[%clk 0:02:55]}  Na6 {[%clk 0:02:57]} 7. Bg2 {[%clk 0:02:54]}  Nc5 {[%clk 0:02:57]} 8. e3 {[%clk 0:02:47]}  h6 {[%clk 0:02:53]} 9. Qe2 {[%clk 0:02:47]}  Bh7 {[%clk 0:02:50]} 10. e4 {[%clk 0:02:45]}  Be7 {[%clk 0:02:47]} 11. h4 {[%clk 0:02:44]}  O-O {[%clk 0:02:39]} 12. g4 {[%clk 0:02:41]}  dxe4 {[%clk 0:02:38]} 13. dxe4 {[%clk 0:02:42]}  e5 {[%clk 0:02:20]} 14. g5 {[%clk 0:02:40]}  Nfd7 {[%clk 0:02:13]} 15. gxh6 {[%clk 0:02:39]}  Ne6 {[%clk 0:02:05]} 16. hxg7 {[%clk 0:02:39]}  Re8 {[%clk 0:02:05]} 17. Nh3 {[%clk 0:02:37]}  Nd4 {[%clk 0:01:48]} 18. Bxd4 {[%clk 0:02:28]}  exd4 {[%clk 0:01:49]} 19. Ng5 {[%clk 0:02:04]}  Bxg5 {[%clk 0:01:43]} 20. hxg5 {[%clk 0:02:05]}  Qxg5 {[%clk 0:01:43]} 21. O-O-O {[%clk 0:01:57]}  Bg6 {[%clk 0:01:09]} 22. Rdg1 {[%clk 0:01:37]}  Kxg7 {[%clk 0:01:07]} 23. Bh3 {[%clk 0:01:34]}  Qc5 {[%clk 0:00:47]} 24. Bxd7 {[%clk 0:01:10]}  Red8 {[%clk 0:00:46]} 25. Qb5 {[%clk 0:00:48]}  Qxa3+ {[%clk 0:00:40]} 26. Kd1 {[%clk 0:00:47]}  Qe7 {[%clk 0:00:11]} 27. Bf5 {[%clk 0:00:42]}  c6 {[%clk 0:00:06]} 28. Qd3 {[%clk 0:00:39]}  a4 {[%clk 0:00:06]} 29. Qh3 {[%clk 0:00:37]}  Rh8 {[%clk 0:00:05]} 30. Qd3 {[%clk 0:00:37]}  a3 {[%clk 0:00:05]} 31. Qxd4+ {[%clk 0:00:37]}  Qf6 {[%clk 0:00:05]} 32. Qxf6+ {[%clk 0:00:32]}  Kxf6 {[%clk 0:00:06]} 33. Rxh8 {[%clk 0:00:27]}  Rxh8 {[%clk 0:00:07]} 34. Ke2 {[%clk 0:00:26]}  Ra8 {[%clk 0:00:06]} 35. Bxg6 {[%clk 0:00:25]}  a2 {[%clk 0:00:06]} 36. Ra1 {[%clk 0:00:25]}  fxg6 {[%clk 0:00:07]} 37. Kd3 {[%clk 0:00:25]}  Ke5 {[%clk 0:00:07]} 38. Kc3 {[%clk 0:00:25]}  Rd8 {[%clk 0:00:07]} 39. Rxa2 {[%clk 0:00:22]} 1-0


[Site "https://www.chess.com"]

[Event "Titled Tuesday Blitz October 18 Late 2022"]
[White "Souleidis, Georgios"]
[Black "Rasulov, Vugar"]
[WhiteFideId "4206827"]
[BlackFideId "13402390"]
[WhiteElo "2505"]
[BlackElo "2918"]
[Result "0-1"]
[Round "03"]
[TimeControl "180+1"]
[Date "2022.10.19"]
[WhiteClock "0:00:01"]
[BlackClock "0:01:46"]

1. e4 {[%clk 0:03:00]}  c5 {[%clk 0:02:59]} 2. Be2 {[%clk 0:02:59]}  Nc6 {[%clk 0:02:59]} 3. d3 {[%clk 0:03:00]}  Nf6 {[%clk 0:02:57]} 4. f4 {[%clk 0:03:00]}  d5 {[%clk 0:02:55]} 5. e5 {[%clk 0:03:00]}  Nd7 {[%clk 0:02:55]} 6. Nf3 {[%clk 0:03:01]}  e6 {[%clk 0:02:55]} 7. O-O {[%clk 0:03:01]}  g6 {[%clk 0:02:54]} 8. c4 {[%clk 0:02:58]}  Bg7 {[%clk 0:02:52]} 9. Nc3 {[%clk 0:02:57]}  Nb6 {[%clk 0:02:52]} 10. a4 {[%clk 0:02:57]}  a5 {[%clk 0:02:51]} 11. Nb5 {[%clk 0:02:57]}  O-O {[%clk 0:02:51]} 12. Be3 {[%clk 0:02:51]}  d4 {[%clk 0:02:51]} 13. Bf2 {[%clk 0:02:50]}  f6 {[%clk 0:02:51]} 14. Bh4 {[%clk 0:02:30]}  Bd7 {[%clk 0:02:50]} 15. Nd6 {[%clk 0:02:23]}  Qb8 {[%clk 0:02:47]} 16. Ne4 {[%clk 0:02:02]}  fxe5 {[%clk 0:02:44]} 17. fxe5 {[%clk 0:01:59]}  Nxe5 {[%clk 0:02:40]} 18. Nxc5 {[%clk 0:01:56]}  Qc7 {[%clk 0:02:28]} 19. Nxd7 {[%clk 0:01:52]}  Nbxd7 {[%clk 0:02:29]} 20. Bg3 {[%clk 0:01:39]}  Nc5 {[%clk 0:02:22]} 21. Nxd4 {[%clk 0:01:04]}  Qb6 {[%clk 0:02:21]} 22. Kh1 {[%clk 0:00:49]}  Ncxd3 {[%clk 0:02:18]} 23. Bxd3 {[%clk 0:00:36]}  Qxd4 {[%clk 0:02:17]} 24. Be2 {[%clk 0:00:36]}  Rxf1+ {[%clk 0:02:14]} 25. Bxf1 {[%clk 0:00:31]}  Rd8 {[%clk 0:02:10]} 26. Qxd4 {[%clk 0:00:28]}  Rxd4 {[%clk 0:02:11]} 27. b3 {[%clk 0:00:25]}  Nd3 {[%clk 0:01:55]} 28. Rb1 {[%clk 0:00:16]}  e5 {[%clk 0:01:54]} 29. Kg1 {[%clk 0:00:11]}  e4 {[%clk 0:01:53]} 30. Bc7 {[%clk 0:00:03]}  Rd7 {[%clk 0:01:53]} 31. Bg3 {[%clk 0:00:02]}  Bd4+ {[%clk 0:01:48]} 32. Kh1 {[%clk 0:00:02]}  Bc5 {[%clk 0:01:48]} 33. h3 {[%clk 0:00:02]}  b6 {[%clk 0:01:48]} 34. Kh2 {[%clk 0:00:02]}  h5 {[%clk 0:01:48]} 35. h4 {[%clk 0:00:02]}  Kf7 {[%clk 0:01:48]} 36. Rd1 {[%clk 0:00:03]}  Ke6 {[%clk 0:01:48]} 37. Bxd3 {[%clk 0:00:02]}  Rxd3 {[%clk 0:01:47]} 38. Rb1 {[%clk 0:00:02]}  e3 {[%clk 0:01:47]} 39. Be1 {[%clk 0:00:02]}  Kf5 {[%clk 0:01:47]} 40. Kg3 {[%clk 0:00:01]}  Ke4 {[%clk 0:01:47]} 41. Kh2 {[%clk 0:00:01]}  e2 {[%clk 0:01:48]} 42. Bg3 {[%clk 0:00:02]}  Rd1 {[%clk 0:01:46]} 43. Rb2 {[%clk 0:00:01]}  Kd3 {[%clk 0:01:45]} 44. Ra2 {[%clk 0:00:01]}  Bg1+ {[%clk 0:01:45]} 45. Kh3 {[%clk 0:00:01]}  Bd4 {[%clk 0:01:46]} 0-1


[Site "https://www.chess.com"]

[Event "Titled Tuesday Blitz October 18 Late 2022"]
[White "Taboas Rodriguez, Daniel"]
[Black "Bazeev, German"]
[WhiteFideId "2208466"]
[BlackFideId "24119350"]
[WhiteElo "2484"]
[BlackElo "2758"]
[Result "0-1"]
[Round "03"]
[TimeControl "180+1"]
[Date "2022.10.19"]
[WhiteClock "0:00:51"]
[BlackClock "0:01:07"]

1. d4 {[%clk 0:02:58]}  Nf6 {[%clk 0:02:50]} 2. Nf3 {[%clk 0:02:58]}  b6 {[%clk 0:02:49]} 3. c4 {[%clk 0:02:59]}  e6 {[%clk 0:02:48]} 4. Nc3 {[%clk 0:02:59]}  Bb4 {[%clk 0:02:48]} 5. Qc2 {[%clk 0:02:58]}  Bb7 {[%clk 0:02:48]} 6. a3 {[%clk 0:02:59]}  Bxc3+ {[%clk 0:02:48]} 7. Qxc3 {[%clk 0:03:00]}  O-O {[%clk 0:02:47]} 8. g3 {[%clk 0:02:59]}  h6 {[%clk 0:02:46]} 9. Bg2 {[%clk 0:02:59]}  d6 {[%clk 0:02:45]} 10. O-O {[%clk 0:02:59]}  Nbd7 {[%clk 0:02:46]} 11. b4 {[%clk 0:03:00]}  Qe7 {[%clk 0:02:45]} 12. Bb2 {[%clk 0:03:00]}  a6 {[%clk 0:02:39]} 13. Rac1 {[%clk 0:02:49]}  Rfc8 {[%clk 0:02:37]} 14. Rfd1 {[%clk 0:02:46]}  b5 {[%clk 0:02:36]} 15. d5 {[%clk 0:02:29]}  e5 {[%clk 0:02:28]} 16. Nh4 {[%clk 0:02:10]}  Nb6 {[%clk 0:02:19]} 17. Nf5 {[%clk 0:01:48]}  Qd7 {[%clk 0:02:17]} 18. Ne3 {[%clk 0:01:38]}  bxc4 {[%clk 0:02:09]} 19. Nxc4 {[%clk 0:01:33]}  Bxd5 {[%clk 0:01:57]} 20. Bxd5 {[%clk 0:01:05]}  Nfxd5 {[%clk 0:01:44]} 21. Nxb6 {[%clk 0:01:05]}  Nxc3 {[%clk 0:01:22]} 22. Nxd7 {[%clk 0:01:05]}  Nxd1 {[%clk 0:01:22]} 23. Rxd1 {[%clk 0:01:06]}  Rd8 {[%clk 0:01:20]} 24. Nxe5 {[%clk 0:00:57]}  dxe5 {[%clk 0:01:20]} 25. Rc1 {[%clk 0:00:58]}  f6 {[%clk 0:01:14]} 26. Rxc7 {[%clk 0:00:57]}  Rd2 {[%clk 0:01:14]} 27. Bc3 {[%clk 0:00:56]}  Rxe2 {[%clk 0:01:14]} 28. a4 {[%clk 0:00:56]}  Ra2 {[%clk 0:01:12]} 29. a5 {[%clk 0:00:56]}  Rc2 {[%clk 0:01:10]} 30. Kh1 {[%clk 0:00:52]}  Rxf2 {[%clk 0:01:08]} 31. h4 {[%clk 0:00:52]}  Rc2 {[%clk 0:01:08]} 32. h5 {[%clk 0:00:51]}  Rd8 {[%clk 0:01:07]} 0-1


[Site "https://www.chess.com"]

[Event "Titled Tuesday Blitz October 18 Late 2022"]
[White "Tarasova, Viktoriya"]
[Black "Bulgurlu, Okan"]
[WhiteFideId "4175840"]
[BlackFideId "6352316"]
[WhiteElo "2182"]
[BlackElo "2153"]
[Result "0-1"]
[Round "03"]
[TimeControl "180+1"]
[Date "2022.10.19"]
[WhiteClock "0:02:32"]
[BlackClock "0:01:35"]

1. d4 {[%clk 0:03:00]}  c5 {[%clk 0:03:00]} 2. d5 {[%clk 0:03:00]}  d6 {[%clk 0:02:59]} 3. Nc3 {[%clk 0:03:00]}  g6 {[%clk 0:02:58]} 4. e4 {[%clk 0:03:00]}  Bg7 {[%clk 0:02:59]} 5. Bb5+ {[%clk 0:03:00]}  Bd7 {[%clk 0:02:58]} 6. a4 {[%clk 0:03:00]}  a6 {[%clk 0:02:57]} 7. Be2 {[%clk 0:02:59]}  Nf6 {[%clk 0:02:57]} 8. Nf3 {[%clk 0:02:58]}  Kf8 {[%clk 0:02:57]} 9. O-O {[%clk 0:02:58]}  Bg4 {[%clk 0:02:45]} 10. h3 {[%clk 0:02:57]}  Bxf3 {[%clk 0:02:43]} 11. Bxf3 {[%clk 0:02:58]}  Nbd7 {[%clk 0:02:44]} 12. Be2 {[%clk 0:02:58]}  Ne8 {[%clk 0:02:39]} 13. Be3 {[%clk 0:02:56]}  h5 {[%clk 0:02:33]} 14. f4 {[%clk 0:02:56]}  Bh6 {[%clk 0:02:23]} 15. Qd2 {[%clk 0:02:55]}  Kg7 {[%clk 0:02:11]} 16. f5 {[%clk 0:02:52]}  Bxe3+ {[%clk 0:02:12]} 17. Qxe3 {[%clk 0:02:52]}  Ne5 {[%clk 0:02:10]} 18. Nd1 {[%clk 0:02:39]}  Nf6 {[%clk 0:01:58]} 19. Nf2 {[%clk 0:02:38]}  Qb6 {[%clk 0:01:48]} 20. b3 {[%clk 0:02:36]}  Qa7 {[%clk 0:01:42]} 21. Nd3 {[%clk 0:02:33]}  c4 {[%clk 0:01:36]} 22. Nxe5 {[%clk 0:02:32]}  Qxe3+ {[%clk 0:01:35]} 0-1


[Site "https://www.chess.com"]

[Event "Titled Tuesday Blitz October 18 Late 2022"]
[White "Thiel, Thomas"]
[Black "Kanter, Eduard"]
[WhiteFideId "4615964"]
[BlackFideId "4103963"]
[WhiteElo "2257"]
[BlackElo "2267"]
[Result "0-1"]
[Round "03"]
[TimeControl "180+1"]
[Date "2022.10.19"]
[WhiteClock "0:01:29"]
[BlackClock "0:00:28"]

1. e4 {[%clk 0:03:00]}  c5 {[%clk 0:02:59]} 2. Nc3 {[%clk 0:03:00]}  g6 {[%clk 0:02:57]} 3. d4 {[%clk 0:02:59]}  cxd4 {[%clk 0:02:57]} 4. Qxd4 {[%clk 0:03:00]}  Nf6 {[%clk 0:02:57]} 5. Be3 {[%clk 0:02:58]}  Nc6 {[%clk 0:02:56]} 6. Qd2 {[%clk 0:02:57]}  Bg7 {[%clk 0:02:55]} 7. f3 {[%clk 0:02:57]}  O-O {[%clk 0:02:51]} 8. Nge2 {[%clk 0:02:57]}  d6 {[%clk 0:02:43]} 9. O-O-O {[%clk 0:02:55]}  Ne5 {[%clk 0:02:38]} 10. Nf4 {[%clk 0:02:52]}  Bd7 {[%clk 0:02:35]} 11. Kb1 {[%clk 0:02:51]}  Rc8 {[%clk 0:02:32]} 12. Bxa7 {[%clk 0:02:43]}  Qa5 {[%clk 0:02:29]} 13. Be3 {[%clk 0:02:40]}  Ra8 {[%clk 0:02:10]} 14. a3 {[%clk 0:02:39]}  Rfc8 {[%clk 0:02:01]} 15. Ncd5 {[%clk 0:02:38]}  Nxd5 {[%clk 0:01:27]} 16. Qxa5 {[%clk 0:02:33]}  Nxe3 {[%clk 0:01:10]} 17. Qd2 {[%clk 0:02:31]}  Nxf1 {[%clk 0:00:49]} 18. Rhxf1 {[%clk 0:02:22]}  Nc4 {[%clk 0:00:49]} 19. Qb4 {[%clk 0:02:22]}  Bxb2 {[%clk 0:00:46]} 20. Nd5 {[%clk 0:02:20]}  Bxa3 {[%clk 0:00:33]} 21. Qb3 {[%clk 0:02:09]}  Kf8 {[%clk 0:00:29]} 22. Rd4 {[%clk 0:01:47]}  b5 {[%clk 0:00:29]} 23. Rfd1 {[%clk 0:01:36]}  Bb2 {[%clk 0:00:29]} 24. R4d3 {[%clk 0:01:29]}  Ra1# {[%clk 0:00:28]} 0-1


[Site "https://www.chess.com"]

[Event "Titled Tuesday Blitz October 18 Late 2022"]
[White "Torres Boch, Jose Francisco"]
[Black "Vargas, Mauricio"]
[WhiteFideId "2278383"]
[BlackFideId "4404572"]
[WhiteElo "2073"]
[BlackElo "2025"]
[Result "1-0"]
[Round "03"]
[TimeControl "180+1"]
[Date "2022.10.19"]
[WhiteClock "0:02:23"]
[BlackClock "0:02:09"]

1. e4 {[%clk 0:03:00]}  d5 {[%clk 0:02:56]} 2. exd5 {[%clk 0:02:59]}  Qxd5 {[%clk 0:02:57]} 3. Nc3 {[%clk 0:02:59]}  Qa5 {[%clk 0:02:57]} 4. d4 {[%clk 0:03:00]}  c6 {[%clk 0:02:57]} 5. Bd2 {[%clk 0:03:00]}  Qc7 {[%clk 0:02:57]} 6. Nf3 {[%clk 0:03:00]}  Nf6 {[%clk 0:02:58]} 7. Bc4 {[%clk 0:03:00]}  Bg4 {[%clk 0:02:58]} 8. h3 {[%clk 0:02:58]}  Bh5 {[%clk 0:02:57]} 9. Qe2 {[%clk 0:02:58]}  e6 {[%clk 0:02:56]} 10. g4 {[%clk 0:02:57]}  Bg6 {[%clk 0:02:56]} 11. O-O-O {[%clk 0:02:56]}  Bd6 {[%clk 0:02:56]} 12. Ne5 {[%clk 0:02:56]}  Nd5 {[%clk 0:02:55]} 13. f4 {[%clk 0:02:54]}  Nd7 {[%clk 0:02:50]} 14. f5 {[%clk 0:02:50]}  exf5 {[%clk 0:02:45]} 15. Nxg6+ {[%clk 0:02:49]}  Kd8 {[%clk 0:02:39]} 16. Nxh8 {[%clk 0:02:49]}  f4 {[%clk 0:02:33]} 17. Nxf7+ {[%clk 0:02:43]}  Kc8 {[%clk 0:02:30]} 18. Qe8+ {[%clk 0:02:42]}  Qd8 {[%clk 0:02:29]} 19. Nxd6+ {[%clk 0:02:42]}  Kc7 {[%clk 0:02:16]} 20. Bxd5 {[%clk 0:02:40]}  cxd5 {[%clk 0:02:16]} 21. Qxd8+ {[%clk 0:02:29]}  Rxd8 {[%clk 0:02:14]} 22. Bxf4 {[%clk 0:02:30]}  Kc6 {[%clk 0:02:13]} 23. Rhe1 {[%clk 0:02:26]}  Nb6 {[%clk 0:02:13]} 24. Re6 {[%clk 0:02:25]}  Nc4 {[%clk 0:02:12]} 25. Nxc4+ {[%clk 0:02:24]}  Kd7 {[%clk 0:02:09]} 26. Rd6+ {[%clk 0:02:23]}  Ke7 {[%clk 0:02:09]} 27. Re1+ {[%clk 0:02:23]} 1-0


[Site "https://www.chess.com"]

[Event "Titled Tuesday Blitz October 18 Late 2022"]
[White "Urazayev, Arystanbek"]
[Black "Ibadov, Dashgyn"]
[WhiteFideId "13709810"]
[BlackFideId "24107514"]
[WhiteElo "2843"]
[BlackElo "2498"]
[Result "1-0"]
[Round "03"]
[TimeControl "180+1"]
[Date "2022.10.19"]
[WhiteClock "0:01:21"]
[BlackClock "0:00:42"]

1. d4 {[%clk 0:03:00]}  d5 {[%clk 0:02:58]} 2. c4 {[%clk 0:03:01]}  e6 {[%clk 0:02:58]} 3. Nf3 {[%clk 0:03:01]}  c6 {[%clk 0:02:57]} 4. e3 {[%clk 0:02:58]}  Nf6 {[%clk 0:02:57]} 5. Nbd2 {[%clk 0:02:58]}  Nbd7 {[%clk 0:02:56]} 6. Bd3 {[%clk 0:02:58]}  Be7 {[%clk 0:02:56]} 7. O-O {[%clk 0:02:57]}  O-O {[%clk 0:02:56]} 8. b3 {[%clk 0:02:56]}  b6 {[%clk 0:02:55]} 9. e4 {[%clk 0:02:55]}  dxe4 {[%clk 0:02:54]} 10. Nxe4 {[%clk 0:02:55]}  Bb7 {[%clk 0:02:53]} 11. Bb2 {[%clk 0:02:53]}  c5 {[%clk 0:02:49]} 12. Qc2 {[%clk 0:02:32]}  Nxe4 {[%clk 0:02:38]} 13. Bxe4 {[%clk 0:02:33]}  Bxe4 {[%clk 0:02:37]} 14. Qxe4 {[%clk 0:02:33]}  Nf6 {[%clk 0:02:33]} 15. Qe2 {[%clk 0:02:33]}  Qc7 {[%clk 0:02:31]} 16. Rad1 {[%clk 0:02:28]}  Rad8 {[%clk 0:02:30]} 17. Rfe1 {[%clk 0:02:27]}  Rfe8 {[%clk 0:02:29]} 18. h3 {[%clk 0:02:23]}  h6 {[%clk 0:02:28]} 19. dxc5 {[%clk 0:02:19]}  Qxc5 {[%clk 0:02:20]} 20. Ne5 {[%clk 0:02:19]}  Qc7 {[%clk 0:02:10]} 21. Qf3 {[%clk 0:02:08]}  Bb4 {[%clk 0:02:05]} 22. Rf1 {[%clk 0:02:03]}  Bd6 {[%clk 0:01:24]} 23. Nc6 {[%clk 0:02:02]}  Rc8 {[%clk 0:01:25]} 24. Nxa7 {[%clk 0:01:54]}  Qxa7 {[%clk 0:01:21]} 25. Rxd6 {[%clk 0:01:53]}  Qxa2 {[%clk 0:01:12]} 26. Bxf6 {[%clk 0:01:53]}  gxf6 {[%clk 0:01:13]} 27. Rxb6 {[%clk 0:01:53]}  Qb2 {[%clk 0:01:07]} 28. Rb7 {[%clk 0:01:45]}  f5 {[%clk 0:00:51]} 29. Rd1 {[%clk 0:01:35]}  Rcd8 {[%clk 0:00:51]} 30. Rdd7 {[%clk 0:01:20]}  Rxd7 {[%clk 0:00:44]} 31. Rxd7 {[%clk 0:01:21]}  Rb8 {[%clk 0:00:42]} 32. Qg3+ {[%clk 0:01:21]} 1-0


[Site "https://www.chess.com"]

[Event "Titled Tuesday Blitz October 18 Late 2022"]
[White "Ventura Bolet, Maxim"]
[Black "Rastbod, Ali"]
[WhiteFideId "22238824"]
[BlackFideId "12567477"]
[WhiteElo "2186"]
[BlackElo "2248"]
[Result "1-0"]
[Round "03"]
[TimeControl "180+1"]
[Date "2022.10.19"]
[WhiteClock "0:00:29"]
[BlackClock "0:00:29"]

1. Nf3 {[%clk 0:02:55]}  Nf6 {[%clk 0:02:56]} 2. g3 {[%clk 0:02:54]}  b5 {[%clk 0:02:55]} 3. Bg2 {[%clk 0:02:54]}  Bb7 {[%clk 0:02:56]} 4. O-O {[%clk 0:02:54]}  e6 {[%clk 0:02:57]} 5. a4 {[%clk 0:02:52]}  b4 {[%clk 0:02:54]} 6. d4 {[%clk 0:02:47]}  c5 {[%clk 0:02:54]} 7. c3 {[%clk 0:02:41]}  cxd4 {[%clk 0:02:43]} 8. cxd4 {[%clk 0:02:30]}  Be7 {[%clk 0:02:40]} 9. Nbd2 {[%clk 0:02:26]}  O-O {[%clk 0:02:38]} 10. Nb3 {[%clk 0:02:26]}  Ne4 {[%clk 0:02:35]} 11. Bf4 {[%clk 0:02:16]}  a5 {[%clk 0:02:34]} 12. Nfd2 {[%clk 0:02:13]}  f5 {[%clk 0:02:32]} 13. Nxe4 {[%clk 0:02:08]}  fxe4 {[%clk 0:02:26]} 14. Nc5 {[%clk 0:02:02]}  Bxc5 {[%clk 0:02:20]} 15. dxc5 {[%clk 0:02:02]}  Bd5 {[%clk 0:02:21]} 16. Bd6 {[%clk 0:01:53]}  Rf5 {[%clk 0:02:16]} 17. Qb1 {[%clk 0:01:48]}  e3 {[%clk 0:02:15]} 18. fxe3 {[%clk 0:01:36]}  Rxf1+ {[%clk 0:02:12]} 19. Qxf1 {[%clk 0:01:35]}  Bxg2 {[%clk 0:02:10]} 20. Qxg2 {[%clk 0:01:35]}  Nc6 {[%clk 0:02:11]} 21. Rf1 {[%clk 0:01:33]}  Qg5 {[%clk 0:02:12]} 22. Qf3 {[%clk 0:01:26]}  h5 {[%clk 0:02:12]} 23. Qf7+ {[%clk 0:01:26]}  Kh7 {[%clk 0:02:12]} 24. Rf4 {[%clk 0:01:16]}  Rd8 {[%clk 0:02:02]} 25. Bc7 {[%clk 0:01:02]}  Rg8 {[%clk 0:01:42]} 26. Qxd7 {[%clk 0:01:00]}  Qxc5 {[%clk 0:01:42]} 27. Qxe6 {[%clk 0:00:58]}  Nd8 {[%clk 0:01:11]} 28. Bxd8 {[%clk 0:00:44]}  Rxd8 {[%clk 0:01:06]} 29. Rf5 {[%clk 0:00:43]}  Qc1+ {[%clk 0:00:39]} 30. Kf2 {[%clk 0:00:43]}  g6 {[%clk 0:00:34]} 31. Qe7+ {[%clk 0:00:36]}  Kh6 {[%clk 0:00:32]} 32. Rf7 {[%clk 0:00:36]}  Rh8 {[%clk 0:00:29]} 33. Qf6 {[%clk 0:00:29]} 1-0


[Site "https://www.chess.com"]